bitfinex-derivatives/quotes_SOLF0:USTF0_20250819
["timestamp","ask_amount","ask_price","bid_price","bid_amount"]
[1755577809961,2.48,178.15,178.06,2.98]
[1755577810162,4.01332284,178.14,178.06,2.98]
[1755577810364,4.01332284,178.13,178.06,2.98]
[1755577810564,2.48,178.15,178.06,2.98]
[1755577810765,4.01298709,178.14,178.06,2.98]
[1755577810966,4.01298709,178.13,178.06,2.98]
[1755577811164,520.02,178.16,178.06,2.98]
[1755577811372,4.01343198,178.15,178.08,5.04441473]
[1755577811569,142.66,178.16,178.09,2.98]
[1755577811872,142.66,178.16,178.09,8.5925]
[1755577812076,142.66,178.16,178.1,2.98]
[1755577812367,125.97691743,178.17,178.1,2.98]
[1755577812567,144.98,178.2,178.1,2.98]
[1755577812862,4.01457515,178.19,178.12,2.98]
[1755577813270,142.5,178.2,178.12,8.5917]
[1755577813466,4.0127508,178.19,178.15,2.98]
[1755577813663,522.28,178.26,178.15,8.5904]
[1755577813865,4.01332987,178.25,178.17,5.04441473]
[1755577814067,4.01332987,178.24,178.18,2.98]
[1755577814257,142.48,178.26,178.18,2.98]
[1755577814666,144.96,178.26,178.18,2.98]
[1755577815864,4.00768636,178.25,178.14,5.04441473]
[1755577816060,6.48768636,178.24,178.14,8.02441473]
[1755577816264,2.48,178.24,178.15,2.98]
[1755577817567,2.48,178.25,178.15,2.98]
[1755577817868,2.48,178.25,178.15,8.5907]
[1755577818371,2.48,178.25,178.15,2.98]
[1755577818970,142.48,178.26,178.18,2.98]
[1755577819172,2.48,178.33,178.2,5.04441473]
[1755577819366,2.48,178.33,178.24,2.98]
[1755577819566,2.48,178.33,178.09,9.27483238]
[1755577819567,2.48,178.31,178.2,8.02441473]
[1755577819869,2.48,178.31,178.21,8.5886]
[1755577820070,2.48,178.31,178.21,2.98]
[1755577827471,2.48,178.28,178.18,3.02]
[1755577827862,2.48,178.28,178.19,3.02]
[1755577828270,2.48,178.31,178.19,3.02]
[1755577828471,2.48,178.31,178.19,8.6292]
[1755577828675,2.48,178.31,178.2,3.02]
[1755577830270,5.04441473,178.33,178.22,5.6083]
[1755577830472,144.74,178.34,178.25,3.02]
[1755577830683,2.48,178.38,178.28,3.02]
[1755577830978,3.97923589,178.37,178.28,3.02]
[1755577831171,2.48,178.38,178.28,3.02]
[1755577831374,2.48,178.38,178.29,5.6061]
[1755577831677,2.48,178.38,178.3,3.02]
[1755577835571,2.48,178.38,178.27,5.04441473]
[1755577835771,2.48,178.36,178.26,3.02]
[1755577835971,2.48,178.36,178.27,3.02]
[1755577836278,2.48,178.39,178.29,5.04441473]
[1755577836484,2.48,178.43,178.33,3.02]
[1755577836682,3.97887892,178.42,178.35,3.02]
[1755577836981,144.64,178.47,178.37,5.04441473]
[1755577837178,7.52441473,178.51,178.38,3.02]
[1755577837376,11.53989465,178.5,178.38,3.02]
[1755577837581,14.52170509,178.49,178.38,3.02]
[1755577837879,3.97761096,178.48,178.39,5.6032]
[1755577838083,3.97761096,178.48,178.38,3.02]
[1755577838278,3.97761096,178.48,178.38,8.6234]
[1755577838678,3.97761096,178.48,178.41,8.6226]
[1755577838876,2.48,178.51,178.41,8.6226]
[1755577839184,3.97569438,178.5,178.41,3.02]
[1755577839383,3.97569438,178.49,178.41,3.02]
[1755577839586,2.48,178.51,178.41,3.02]
[1755577839886,3.96859112,178.5,178.41,3.02]
[1755577840082,3.96859112,178.49,178.41,3.02]
[1755577840281,2.48,178.49,178.37,8.06441473]
[1755577840584,2.48,178.47,178.37,3.02]
[1755577840781,3.96817595,178.46,178.37,3.02]
[1755577841089,2.48,178.45,178.33,8.06441473]
[1755577841279,2.48,178.45,178.35,3.02]
[1755577842079,2.48,178.49,178.37,3.02]
[1755577842285,3.96937964,178.48,178.37,3.02]
[1755577842480,2.48,178.49,178.37,3.02]
[1755577842783,3.96867186,178.48,178.37,3.02]
[1755577842983,2.48,178.49,178.37,3.02]
[1755577843180,3.96730444,178.48,178.37,3.02]
[1755577843486,2.48,178.49,178.37,3.02]
[1755577843985,2.48,178.49,178.4,3.02]
[1755577844782,2.48,178.55,178.4,3.02]
[1755577844987,2.48,178.53,178.4,3.02]
[1755577845183,2.48,178.51,178.4,3.02]
[1755577845384,2.48,178.49,178.4,3.02]
[1755577845689,3.96456526,178.48,178.4,3.02]
[1755577845885,2.48,178.49,178.4,3.02]
[1755577846085,2.48,178.47,178.36,3.02]
[1755577846785,2.48,178.45,178.36,3.02]
[1755577846989,3.96353432,178.44,178.32,3.02]
[1755577847184,2.48,178.45,178.32,3.02]
[1755577847396,3.96505327,178.44,178.32,3.02]
[1755577847583,2.48,178.42,178.32,3.02]
[1755577848383,2.48,178.46,178.32,3.02]
[1755577848685,3.96631235,178.45,178.35,5.6042]
[1755577848894,2.48,178.46,178.36,3.02]
[1755577849091,3.96654808,178.45,178.36,3.02]
[1755577849389,2.48,178.46,178.36,3.02]
[1755577849590,3.96689391,178.45,178.36,8.6241]
[1755577849887,2.48,178.46,178.36,3.02]
[1755577850089,3.96738409,178.45,178.36,3.02]
[1755577850280,2.48,178.46,178.36,3.02]
[1755577850479,3.96759787,178.45,178.36,3.02]
[1755577850681,2.48,178.46,178.36,3.02]
[1755577850881,3.96984963,178.45,178.36,3.02]
[1755577851083,2.48,178.46,178.36,3.02]
[1755577851284,3.97103636,178.45,178.36,3.02]
[1755577851484,3.97103636,178.44,178.36,3.02]
[1755577851685,2.48,178.46,178.36,3.02]
[1755577851881,2.48,178.44,178.36,3.02]
[1755577852094,3.97184369,178.43,178.32,3.02]
[1755577852291,3.97184369,178.42,178.32,3.02]
[1755577852490,2.48,178.44,178.32,8.6253]
[1755577852690,3.97479494,178.43,178.32,3.02]
[1755577852891,3.97479494,178.42,178.32,3.02]
[1755577853093,2.48,178.44,178.32,3.02]
[1755577853294,6.99527348,178.43,178.32,3.02]
[1755577853600,3.97479313,178.42,178.33,5.605]
[1755577853895,2.48,178.44,178.32,3.02]
[1755577854092,6.99832458,178.43,178.32,3.02]
[1755577854293,3.97749857,178.42,178.33,5.6051]
[1755577854496,2.48,178.44,178.33,5.6051]
[1755577854689,7.00379838,178.43,178.33,5.6051]
[1755577854889,3.98044332,178.42,178.33,5.6051]
[1755577855192,3.98465132,178.41,178.33,5.6051]
[1755577855390,2.48,178.44,178.33,5.6051]
[1755577855594,7.00973387,178.43,178.33,5.6051]
[1755577855789,3.98395644,178.42,178.33,5.6051]
[1755577855992,3.98395644,178.41,178.34,3.15]
[1755577856196,2.48,178.44,178.34,3.15]
[1755577856397,7.01542304,178.43,178.34,3.15]
[1755577856601,3.987167,178.42,178.36,3.15]
[1755577856895,2.49,178.49,178.36,3.15]
[1755577857097,11.59891034,178.48,178.36,8.7541]
[1755577857297,2.49,178.49,178.36,8.7541]
[1755577857298,7.01674237,178.47,178.36,8.7541]
[1755577857496,3.9876469,178.46,178.36,8.7541]
[1755577857797,3.9876469,178.45,178.35,3.15]
[1755577857995,2.49,178.49,178.35,3.15]
[1755577858190,11.60709816,178.48,178.35,3.15]
[1755577858395,2.49,178.46,178.35,3.15]
[1755577858593,3.99247487,178.45,178.35,3.15]
[1755577858798,3.99247487,178.44,178.36,5.6041]
[1755577858995,2.49,178.46,178.33,3.15]
[1755577859299,3.99369723,178.45,178.37,5.6036]
[1755577859494,3.99369723,178.44,178.37,5.6036]
[1755577859799,2.49,178.46,178.38,3.15]
[1755577859987,3.99324189,178.45,178.38,3.15]
[1755577860190,2.49,178.43,178.32,10.96466038]
[1755577860403,3.99324189,178.42,178.32,3.15]
[1755577860600,2.49,178.47,178.34,7.81466038]
[1755577860801,7.02673363,178.46,178.38,3.15]
[1755577861096,3.99352141,178.45,178.38,3.15]
[1755577861301,3.99352141,178.44,178.38,8.7533]
[1755577861492,2.49,178.47,178.38,8.7533]
[1755577861696,7.0309642,178.46,178.38,3.15]
[1755577861891,2.49,178.47,178.38,3.15]
[1755577861892,7.03186839,178.45,178.38,3.15]
[1755577862094,3.99590698,178.44,178.38,3.15]
[1755577862401,2.49,178.47,178.38,3.15]
[1755577862695,7.0372171,178.46,178.38,3.15]
[1755577862891,2.49,178.44,178.31,3.15]
[1755577863093,11.63408373,178.43,178.31,3.15]
[1755577863295,3.99948382,178.42,178.33,3.15]
[1755577863494,2.49,178.48,178.32,7.81466038]
[1755577863495,2.49,178.48,178.37,3.15]
[1755577863700,11.64028031,178.47,178.37,3.15]
[1755577863900,11.64028031,178.46,178.37,3.15]
[1755577864199,4.00237,178.45,178.37,3.15]
[1755577864391,4.00237,178.44,178.38,3.15]
[1755577864699,4.00237,178.44,178.37,141.96]
[1755577864700,2.49,178.52,178.41,3.15]
[1755577864897,11.65298689,178.51,178.41,3.15]
[1755577865193,2.49,178.52,178.4,7.81466038]
[1755577865194,4.00646166,178.5,178.44,3.15]
[1755577865400,4.00646166,178.49,178.4,7.81466038]
[1755577865604,132.30285752,178.56,178.46,8.751]
[1755577865802,11.64062065,178.55,178.46,3.15]
[1755577865995,11.64062065,178.54,178.46,3.15]
[1755577866190,4.00217803,178.53,178.47,5.6006]
[1755577866396,4.00217803,178.52,178.47,5.6006]
[1755577866601,2.49,178.56,178.48,3.15]
[1755577866903,4.00148347,178.55,178.48,3.15]
[1755577867095,4.00148347,178.54,178.48,3.15]
[1755577867297,2.49,178.58,178.48,3.15]
[1755577867497,7.04330653,178.57,178.48,3.15]
[1755577867696,4.00254991,178.56,178.48,3.15]
[1755577867902,4.00254991,178.55,178.48,3.15]
[1755577868099,6.49254991,178.54,178.44,3.15]
[1755577868310,4.00254991,178.53,178.44,3.15]
[1755577868597,4.00254991,178.53,178.44,7.81466038]
[1755577868900,4.00254991,178.53,178.45,3.15]
[1755577869996,2.49,178.52,178.41,3.15]
[1755577870197,2.49,178.5,178.38,5.6035]
[1755577870403,2.49,178.48,178.37,379.77]
[1755577870598,4.00380979,178.47,178.37,379.77]
[1755577871604,2.49,178.46,178.37,379.77]
[1755577871905,4.00380979,178.45,178.37,379.77]
[1755577872800,2.49,178.44,178.37,376.62]
[1755577873004,2.49,178.44,178.36,3.15]
[1755577873403,16.85,178.53,178.36,3.15]
[1755577873404,2.49,178.48,178.36,3.15]
[1755577873604,2.49,178.46,178.36,3.15]
[1755577873806,4.01388915,178.45,178.36,3.15]
[1755577874007,4.01388915,178.44,178.36,3.15]
[1755577874205,4.01388915,178.43,178.36,3.15]
[1755577874404,4.01388915,178.42,178.36,3.15]
[1755577874607,2.49,178.46,178.36,3.15]
[1755577874906,4.01607179,178.45,178.36,8.7539]
[1755577875207,4.01607179,178.44,178.36,8.7539]
[1755577875398,4.01607179,178.43,178.36,3.15]
[1755577875597,2.49,178.46,178.37,5.6038]
[1755577875798,4.01983174,178.45,178.36,3.15]
[1755577876006,4.01983174,178.44,178.36,8.7541]
[1755577876206,4.01983174,178.43,178.37,3.15]
[1755577876406,2.49,178.5,178.37,3.15]
[1755577876608,11.69738696,178.49,178.37,3.15]
[1755577876808,2.49,178.47,178.37,3.15]
[1755577877001,4.02161077,178.46,178.37,3.15]
[1755577877203,4.02161077,178.45,178.37,3.15]
[1755577877501,4.02161077,178.44,178.37,8.7537]
[1755577877802,2.49,178.47,178.37,3.15]
[1755577878003,4.02321235,178.46,178.37,3.15]
[1755577878203,4.02321235,178.45,178.37,3.15]
[1755577878408,4.02321235,178.44,178.37,3.15]
[1755577878611,2.49,178.47,178.37,3.15]
[1755577878810,4.0239979,178.46,178.37,3.15]
[1755577879012,4.0239979,178.45,178.37,3.15]
[1755577879205,4.0239979,178.44,178.37,3.15]
[1755577879513,2.49,178.47,178.37,3.15]
[1755577879710,4.02481858,178.46,178.37,3.15]
[1755577879907,4.02481858,178.45,178.37,3.15]
[1755577880212,2.49,178.51,178.39,3.15]
[1755577880414,4.02580165,178.5,178.39,3.15]
[1755577880713,4.02580165,178.49,178.43,3.15]
[1755577880912,2.49,178.51,178.45,3.15]
[1755577881110,4.00901518,178.5,178.38,7.81466038]
[1755577881314,4.00901518,178.49,178.46,3.15]
[1755577881509,2.49,178.51,178.46,3.15]
[1755577881710,4.01042882,178.5,178.43,3.15]
[1755577881905,2.49,178.54,178.43,3.15]
[1755577882107,4.01077911,178.53,178.46,5.601]
[1755577882414,4.01077911,178.52,178.46,2.96]
[1755577882608,2.49,178.54,178.47,8.5606]
[1755577882803,4.00759934,178.53,178.47,8.5606]
[1755577883010,4.00759934,178.52,178.48,2.96]
[1755577883308,2.49,178.54,178.48,2.96]
[1755577883508,4.00624424,178.53,178.48,2.96]
[1755577883709,4.00624424,178.52,178.48,2.96]
[1755577883908,2.49,178.54,178.48,2.96]
[1755577884108,4.00650536,178.53,178.49,2.96]
[1755577884308,2.49,178.54,178.49,2.96]
[1755577884511,4.00506491,178.53,178.5,2.96]
[1755577884709,379.04,178.58,178.5,2.96]
[1755577884914,11.67972745,178.57,178.5,2.96]
[1755577885109,7.06007422,178.56,178.5,2.96]
[1755577885310,6.48504592,178.55,178.5,2.96]
[1755577885510,4.00504592,178.54,178.5,2.96]
[1755577885711,4.00504592,178.53,178.5,2.96]
[1755577886012,2.48,178.57,178.47,8.5606]
[1755577886310,4.00572291,178.56,178.47,8.5606]
[1755577886505,4.00572291,178.55,178.47,8.5606]
[1755577886706,4.00572291,178.54,178.47,8.5606]
[1755577886916,4.00572291,178.53,178.48,5.6003]
[1755577887118,2.48,178.57,178.49,2.96]
[1755577887317,4.00596306,178.56,178.49,2.96]
[1755577887516,4.00596306,178.55,178.49,2.96]
[1755577887819,4.00596306,178.54,178.5,2.96]
[1755577888119,2.48,178.57,178.5,2.96]
[1755577888318,4.00514057,178.56,178.5,2.96]
[1755577888514,4.00514057,178.55,178.5,2.96]
[1755577888722,5.89980195,178.61,178.46,7.81466038]
[1755577889011,14.17137385,178.6,178.47,2.96]
[1755577889216,2.49,178.58,178.49,5.6]
[1755577889420,4.00565988,178.57,178.49,8.56]
[1755577889613,2.49,178.58,178.49,2.96]
[1755577889812,4.00441307,178.57,178.49,2.96]
[1755577890014,2.49,178.58,178.49,2.96]
[1755577890920,2.49,178.58,178.49,8.56]
[1755577893114,2.49,178.58,178.49,2.96]
[1755577893316,2.49,178.56,178.45,2.96]
[1755577893519,2.49,178.56,178.45,8.5612]
[1755577893719,2.49,178.56,178.45,2.96]
[1755577894112,2.49,178.56,178.45,8.5612]
[1755577894524,2.49,178.56,178.45,2.96]
[1755577895221,2.49,178.56,178.49,2.96]
[1755577895420,2.49,178.6,178.49,2.96]
[1755577895622,4.00007791,178.59,178.49,2.96]
[1755577895821,2.49,178.6,178.49,2.96]
[1755577896124,2.49,178.6,178.5,5.5996]
[1755577896324,3.99983467,178.59,178.49,2.96]
[1755577896625,2.49,178.58,178.49,2.96]
[1755577897225,2.49,178.58,178.49,8.5599]
[1755577897725,2.49,178.58,178.49,2.96]
[1755577900028,2.49,178.58,178.5,5.5996]
[1755577900418,2.49,178.61,178.52,2.96]
[1755577900624,4.00256945,178.6,178.52,2.96]
[1755577900822,4.00256945,178.59,178.52,2.96]
[1755577901023,2.49,178.61,178.52,2.96]
[1755577901229,4.00257248,178.6,178.52,2.96]
[1755577901427,4.00257248,178.59,178.52,2.96]
[1755577901628,2.49,178.61,178.52,2.96]
[1755577901928,4.00283709,178.6,178.52,2.96]
[1755577902126,4.00283709,178.59,178.53,5.5988]
[1755577902323,2.49,178.61,178.53,5.5988]
[1755577902521,4.00373689,178.6,178.53,5.5988]
[1755577902722,4.00373689,178.59,178.52,8.5591]
[1755577902927,2.49,178.61,178.52,8.5591]
[1755577903124,4.00432828,178.6,178.52,8.5591]
[1755577903425,4.00432828,178.59,178.52,2.96]
[1755577903623,2.49,178.61,178.52,2.96]
[1755577903827,2.49,178.59,178.48,2.96]
[1755577904029,4.00394493,178.58,178.5,5.5997]
[1755577904327,2.49,178.59,178.5,5.5997]
[1755577904528,4.00342863,178.58,178.5,5.5997]
[1755577904731,2.49,178.59,178.5,5.5997]
[1755577905030,4.00320065,178.58,178.5,5.5997]
[1755577905219,2.49,178.59,178.49,5.5999]
[1755577905419,4.00314121,178.58,178.49,5.5999]
[1755577905621,2.49,178.59,178.48,2.96]
[1755577905821,2.49,178.57,178.48,2.96]
[1755577906224,4.00319681,178.56,178.48,2.96]
[1755577906430,2.49,178.57,178.48,2.96]
[1755577906731,2.49,178.55,178.48,2.96]
[1755577907025,2.49,178.55,178.44,141.8]
[1755577907026,2.49,178.53,178.44,144.76]
[1755577907919,4.00425778,178.52,178.44,2.96]
[1755577908129,2.49,178.51,178.44,2.96]
[1755577909029,2.49,178.57,178.44,7.98230037]
[1755577909233,4.00595045,178.56,178.47,5.02230037]
[1755577909438,4.00595045,178.55,178.47,5.02230037]
[1755577909640,2.49,178.57,178.47,7.98230037]
[1755577909940,4.00863222,178.56,178.47,7.98230037]
[1755577910136,4.00863222,178.55,178.47,7.98230037]
[1755577910337,2.49,178.57,178.47,2.96]
[1755577910644,4.0049209,178.56,178.47,8.5607]
[1755577910844,2.49,178.57,178.47,2.96]
[1755577911238,2.49,178.57,178.45,7.80714161]
[1755577911239,2.49,178.61,178.5,2.96]
[1755577911436,2.49,178.59,178.5,2.96]
[1755577911637,4.00506355,178.58,178.5,2.96]
[1755577911837,2.49,178.59,178.5,2.96]
[1755577912037,4.00505115,178.58,178.5,2.96]
[1755577912238,2.49,178.59,178.51,5.5993]
[1755577912541,2.49,178.59,178.5,2.96]
[1755577912542,4.00439316,178.58,178.5,2.96]
[1755577912741,2.49,178.59,178.51,5.5994]
[1755577912944,4.00184174,178.58,178.51,5.5994]
[1755577913248,2.49,178.59,178.5,2.96]
[1755577913440,4.00371345,178.58,178.5,2.96]
[1755577913639,2.49,178.59,178.5,2.96]
[1755577913942,4.00462665,178.58,178.5,2.96]
[1755577914143,2.49,178.59,178.5,2.96]
[1755577914342,4.00411407,178.58,178.5,2.96]
[1755577914541,2.49,178.59,178.5,8.5597]
[1755577915042,2.49,178.59,178.5,2.96]
[1755577915343,2.49,178.59,178.52,5.5991]
[1755577915642,2.49,178.59,178.53,3.02]
[1755577916038,2.48,178.65,178.54,3.02]
[1755577916237,2.48,178.65,178.55,5.5981]
[1755577916238,4.00498446,178.64,178.55,5.5981]
[1755577916436,4.00498446,178.63,178.55,5.5981]
[1755577916638,4.00498446,178.62,178.55,5.5981]
[1755577916944,2.48,178.65,178.55,5.5981]
[1755577917141,2.48,178.65,178.54,3.02]
[1755577917142,4.00581566,178.64,178.54,8.6184]
[1755577917347,4.00581566,178.63,178.54,3.02]
[1755577917640,2.48,178.65,178.54,3.02]
[1755577917840,4.00632373,178.64,178.55,5.5982]
[1755577918034,4.00632373,178.63,178.55,5.5982]
[1755577918240,2.48,178.65,178.55,5.5982]
[1755577918442,4.00683738,178.64,178.55,5.5982]
[1755577918751,4.00683738,178.63,178.55,5.5982]
[1755577918949,2.48,178.65,178.55,5.5982]
[1755577919149,4.00706795,178.64,178.55,5.5982]
[1755577919348,4.00706795,178.63,178.55,5.5982]
[1755577919548,2.48,178.65,178.55,5.5982]
[1755577919745,4.00679104,178.64,178.55,5.5982]
[1755577919949,4.00679104,178.63,178.55,5.5982]
[1755577920150,2.48,178.65,178.55,5.5982]
[1755577920452,4.0085994,178.64,178.55,5.5982]
[1755577920646,4.0085994,178.63,178.56,5.5976]
[1755577920952,2.48,178.65,178.56,5.5976]
[1755577921150,4.00451218,178.64,178.56,5.5976]
[1755577921351,4.00451218,178.63,178.55,5.5981]
[1755577921546,2.48,178.61,178.5,3.02]
[1755577921848,4.00451218,178.6,178.5,3.02]
[1755577922445,2.48,178.61,178.54,3.02]
[1755577922639,4.00742767,178.6,178.54,3.02]
[1755577922851,2.48,178.58,178.5,3.02]
[1755577923046,4.00661947,178.57,178.5,3.02]
[1755577923345,2.48,178.64,178.5,3.02]
[1755577923552,4.00946936,178.63,178.54,3.02]
[1755577923746,4.00946936,178.62,178.54,3.02]
[1755577923947,6.48946936,178.61,178.54,3.02]
[1755577924255,4.01134746,178.6,178.54,3.02]
[1755577924450,2.48,178.61,178.54,3.02]
[1755577924647,4.01085362,178.6,178.54,3.02]
[1755577924853,2.48,178.66,178.54,3.02]
[1755577925149,4.01082565,178.65,178.55,5.598]
[1755577925339,2.48,178.63,178.54,3.02]
[1755577925545,4.01082565,178.62,178.54,8.6183]
[1755577925756,4.01082565,178.62,178.54,3.02]
[1755577926052,4.01082565,178.62,178.56,5.5977]
[1755577926256,4.01082565,178.62,178.54,3.02]
[1755577926949,2.48,178.66,178.57,5.5973]
[1755577927148,4.01076348,178.65,178.58,3.02]
[1755577927343,4.01076348,178.64,178.58,3.02]
[1755577927540,2.48,178.66,178.59,5.5967]
[1755577927745,4.00999926,178.65,178.58,3.02]
[1755577927947,4.00999926,178.64,178.58,3.02]
[1755577928146,2.48,178.66,178.58,3.02]
[1755577928451,4.00936736,178.65,178.58,3.02]
[1755577928652,4.00936736,178.64,178.58,3.02]
[1755577928848,4.00777633,178.63,178.58,3.02]
[1755577929040,2.48,178.62,178.58,3.02]
[1755577929640,141.72,178.71,178.53,3.02]
[1755577929641,2.48,178.68,178.53,3.02]
[1755577929846,2.48,178.62,178.53,3.02]
[1755577930152,4.00869438,178.61,178.53,3.02]
[1755577930343,2.48,178.62,178.53,3.02]
[1755577930539,4.00768413,178.61,178.53,3.02]
[1755577930748,2.48,178.62,178.53,8.6186]
[1755577931048,4.00794884,178.61,178.53,3.02]
[1755577931245,2.48,178.62,178.53,3.02]
[1755577931455,4.00830111,178.61,178.53,8.6185]
[1755577931751,2.48,178.62,178.53,3.02]
[1755577931947,2.48,178.62,178.55,5.5981]
[1755577932250,4.00811496,178.61,178.53,3.02]
[1755577932551,4.00811496,178.6,178.53,3.02]
[1755577932752,4.00811496,178.59,178.53,3.02]
[1755577932950,2.48,178.62,178.53,3.02]
[1755577933252,4.00822291,178.61,178.55,5.598]
[1755577933453,2.48,178.62,178.55,5.598]
[1755577933748,4.00885646,178.61,178.55,8.618]
[1755577933951,2.48,178.62,178.56,5.5978]
[1755577934154,4.00894502,178.61,178.57,3.02]
[1755577934352,2.48,178.62,178.57,3.02]
[1755577934548,6.4890199,178.61,178.57,3.02]
[1755577934749,2.48,178.61,178.57,3.02]
[1755577934951,24.65714161,178.69,178.51,7.80714161]
[1755577934952,6.49054277,178.6,178.53,3.02]
[1755577935153,4.01054277,178.59,178.53,3.02]
[1755577935351,2.48,178.6,178.53,3.02]
[1755577935658,4.0107785,178.59,178.53,3.02]
[1755577935853,2.48,178.6,178.53,3.02]
[1755577936047,4.01078137,178.59,178.53,3.02]
[1755577936247,2.48,178.6,178.5,3.02]
[1755577936454,2.48,178.58,178.5,3.02]
[1755577936957,4.01046444,178.57,178.5,3.02]
[1755577937161,2.48,178.58,178.5,3.02]
[1755577937458,4.00982452,178.57,178.5,3.02]
[1755577937759,2.48,178.58,178.5,3.02]
[1755577937947,4.0094438,178.57,178.5,3.02]
[1755577938146,2.48,178.58,178.5,3.02]
[1755577938354,4.00929394,178.57,178.5,3.02]
[1755577938658,4.01158184,178.56,178.5,3.02]
[1755577938859,2.48,178.58,178.47,10.82714161]
[1755577939056,2.48,178.56,178.47,3.02]
[1755577939361,4.01105838,178.55,178.47,3.02]
[1755577940049,2.48,178.54,178.47,3.02]
[1755577941959,4.00387833,178.53,178.47,3.02]
[1755577942151,2.48,178.54,178.47,3.02]
[1755577942352,4.00371208,178.53,178.47,3.02]
[1755577942552,2.48,178.54,178.47,3.02]
[1755577942761,4.00334381,178.53,178.47,3.02]
[1755577943057,2.48,178.54,178.47,3.02]
[1755577943259,4.00344063,178.53,178.47,3.02]
[1755577943462,2.48,178.54,178.47,3.02]
[1755577943662,4.00310603,178.53,178.47,3.02]
[1755577943961,5.89980195,178.59,178.41,3.16]
[1755577943962,2.48,178.51,178.41,3.16]
[1755577944347,4.00355367,178.5,178.41,3.16]
[1755577944554,2.48,178.49,178.41,3.16]
[1755577945855,4.00624568,178.48,178.41,3.16]
[1755577946060,2.48,178.49,178.41,3.16]
[1755577946447,2.48,178.54,178.41,3.16]
[1755577946654,4.00414075,178.53,178.41,3.16]
[1755577946854,2.48,178.51,178.41,3.16]
[1755577947764,2.48,178.55,178.44,3.16]
[1755577948360,2.48,178.55,178.47,3.16]
[1755577948759,4.00118164,178.54,178.47,3.16]
[1755577948962,2.48,178.52,178.43,3.16]
[1755577949147,7.80714161,178.56,178.4,3.16]
[1755577949148,2.48,178.5,178.4,3.16]
[1755577949353,3.9991411,178.49,178.4,3.16]
[1755577949554,2.48,178.5,178.4,3.16]
[1755577949762,3.99914033,178.49,178.4,3.16]
[1755577949955,2.48,178.5,178.4,3.16]
[1755577950153,3.99959735,178.49,178.4,3.16]
[1755577950353,2.48,178.5,178.4,3.16]
[1755577951058,3.99913054,178.49,178.4,3.16]
[1755577951259,2.48,178.5,178.4,3.16]
[1755577951460,2.48,178.48,178.4,3.16]
[1755577951663,2.48,178.48,178.36,141.66]
[1755577951664,2.48,178.48,178.36,144.82]
[1755577952059,3.99964824,178.47,178.36,144.82]
[1755577952261,3.99964824,178.47,178.3,376.34]
[1755577952262,2.48,178.45,178.32,3.16]
[1755577952655,2.48,178.45,178.35,3.16]
[1755577953353,2.48,178.48,178.36,3.16]
[1755577953559,3.99664025,178.47,178.36,3.16]